bitfinex-derivatives/quotes_ETHF0:USTF0_20250902
["timestamp","ask_amount","ask_price","bid_price","bid_amount"]
[1756814853657,0.6319,4327.9,4327.3,0.243]
[1756814854759,0.6319,4327.9,4327.4,0.243]
[1756814854956,0.2511,4328.0,4327.4,0.243]
[1756814855158,0.6319,4327.9,4327.4,0.243]
[1756814855557,0.6319,4327.9,4327.1,3.2078]
[1756814855858,0.2511,4328.0,4326.7,33.286]
[1756814855859,0.2511,4327.5,4326.7,33.286]
[1756814856059,0.883,4327.0,4326.9,0.243]
[1756814856853,0.2511,4327.0,4326.7,33.286]
[1756814857055,0.883,4327.0,4326.9,0.243]
[1756814857258,0.6319,4327.4,4326.5,3.2078]
[1756814857461,0.6319,4326.9,4326.6,0.243]
[1756814858355,0.2511,4328.0,4326.6,0.243]
[1756814858555,0.6319,4327.9,4327.3,3.2078]
[1756814858756,0.6319,4327.9,4327.0,0.0145]
[1756814858757,0.2511,4328.0,4327.5,3.2078]
[1756814859262,0.6082,4327.9,4327.5,3.2078]
[1756814859755,3.2078,4328.3,4327.6,0.243]
[1756814860061,0.6082,4327.9,4327.7,0.243]
[1756814860262,0.6082,4327.9,4327.8,0.243]
[1756814860860,0.6082,4327.9,4327.0,3.2078]
[1756814861054,0.6082,4327.9,4327.1,0.243]
[1756814861965,0.6082,4327.9,4327.2,0.243]
[1756814862660,0.6082,4327.9,4327.0,3.2078]
[1756814862862,0.6082,4327.9,4327.1,0.243]
[1756814863354,0.6082,4327.9,4327.2,0.243]
[1756814864062,0.6082,4327.9,4327.3,0.243]
[1756814864566,0.23,4328.0,4327.4,40.8]
[1756814865062,0.23,4328.0,4327.5,3.2078]
[1756814865063,0.6082,4327.9,4327.5,3.2078]
[1756814865463,0.6082,4327.9,4327.6,0.243]
[1756814865966,0.23,4328.0,4327.6,0.243]
[1756814866169,0.6082,4327.9,4327.7,0.243]
[1756814866364,0.23,4328.0,4327.8,0.243]
[1756814866668,0.6082,4327.9,4327.8,0.243]
[1756814866865,0.23,4328.0,4327.5,3.2078]
[1756814867066,0.6082,4327.9,4327.5,3.2078]
[1756814867368,0.6082,4327.9,4327.6,0.242]
[1756814867870,0.6082,4327.9,4327.7,0.242]
[1756814868165,0.6082,4327.9,4326.4,3.2078]
[1756814868166,0.23,4326.5,4326.4,3.2078]
[1756814868364,0.8382,4326.5,4326.4,3.2078]
[1756814868566,0.8382,4326.5,4326.4,3.4508]
[1756814868767,0.8382,4326.5,4326.4,3.2078]
[1756814869169,0.8382,4326.5,4326.4,3.4508]
[1756814871475,1.02738825,4326.5,4326.4,0.243]
[1756814871972,1.02738825,4326.5,4326.4,0.242]
[1756814872880,0.23,4326.0,4325.8,3.2078]
[1756814873080,0.23,4326.0,4325.9,0.242]
[1756814873572,0.8382,4326.0,4325.9,0.242]
[1756814873771,0.8382,4326.0,4325.8,3.2078]
[1756814873772,0.6082,4325.9,4325.8,3.2078]
[1756814873978,0.6082,4325.9,4325.8,3.4498]
[1756814874277,0.6082,4325.9,4325.8,3.2078]
[1756814874667,0.6082,4325.9,4325.8,0.242]
[1756814875178,0.23,4326.0,4325.3,44.0078]
[1756814875373,0.23,4326.0,4325.4,0.242]
[1756814875569,0.6082,4325.9,4325.4,0.242]
[1756814876371,0.6082,4325.9,4325.5,0.242]
[1756814876572,0.23,4326.0,4325.5,0.242]
[1756814876778,0.6082,4325.4,4325.3,3.2078]
[1756814876978,0.6082,4324.9,4324.8,3.2078]
[1756814877178,0.6082,4324.9,4324.8,3.4498]
[1756814878174,0.6082,4324.9,4324.8,3.2078]
[1756814878370,0.6082,4325.7,4324.8,8.09713999]
[1756814878575,0.8382,4325.5,4325.4,3.2078]
[1756814878874,0.8382,4325.5,4325.4,3.4498]
[1756814879476,0.6082,4325.5,4325.4,3.2078]
[1756814879678,0.8382,4325.5,4325.4,3.4498]
[1756814880086,0.8382,4325.5,4325.4,3.2078]
[1756814880685,0.6082,4325.5,4325.4,3.4498]
[1756814880879,0.6082,4326.1,4325.4,3.4498]
[1756814881184,0.23,4326.0,4325.5,0.242]
[1756814881380,0.6082,4326.4,4325.5,0.242]
[1756814881586,0.8382,4326.5,4325.9,3.2078]
[1756814881782,0.23,4327.0,4326.4,3.2078]
[1756814881987,0.1888502,4326.9,4326.5,0.242]
[1756814882282,0.23,4327.0,4326.5,0.242]
[1756814882480,0.23,4328.0,4326.9,3.2078]
[1756814882781,0.6082,4327.9,4326.9,3.2078]
[1756814882983,0.6082,4327.4,4327.0,0.242]
[1756814883375,0.6082,4327.1,4326.4,3.2078]
[1756814883683,0.6082,4327.9,4326.9,3.2078]
[1756814883987,0.6082,4327.9,4327.5,3.2078]
[1756814884183,0.23,4328.0,4327.6,0.242]
[1756814884596,0.6082,4327.9,4327.6,0.242]
[1756814884888,0.6082,4327.9,4327.7,0.242]
[1756814885086,0.23,4328.0,4327.5,3.2078]
[1756814885291,0.6082,4327.9,4327.6,0.242]
[1756814885482,0.23,4327.5,4327.4,0.242]
[1756814885783,0.23,4327.0,4326.8,3.2078]
[1756814886283,0.23,4327.0,4326.3,3.2078]
[1756814886484,0.23,4327.5,4326.3,3.2078]
[1756814886686,0.18884485,4327.4,4326.4,0.242]
[1756814886891,0.79704485,4327.3,4326.3,3.2078]
[1756814887188,0.23,4327.5,4326.9,3.2078]
[1756814887491,0.6082,4327.4,4326.9,3.2078]
[1756814887788,0.8382,4327.0,4326.9,3.2078]
[1756814887990,0.8382,4327.0,4326.9,3.4498]
[1756814888992,0.8006,4327.5,4326.9,3.2078]
[1756814889193,0.5706,4327.4,4327.0,0.242]
[1756814889399,0.5706,4327.9,4327.0,0.242]
[1756814889691,0.5706,4327.9,4327.4,3.2078]
[1756814889895,0.5706,4327.9,4327.5,0.242]
[1756814890090,0.23,4328.0,4327.5,0.242]
[1756814890597,0.5706,4327.9,4327.5,0.242]
[1756814890790,0.23,4328.0,4327.4,3.2078]
[1756814891095,0.23,4328.0,4327.5,0.242]
[1756814891295,0.23,4328.0,4327.6,0.242]
[1756814891493,0.5706,4327.9,4327.4,3.2078]
[1756814891683,0.8089,4327.5,4327.4,3.2078]
[1756814891889,0.2383,4327.5,4326.9,3.2078]
[1756814892086,0.8089,4327.0,4326.9,3.2078]
[1756814892900,0.8089,4327.0,4326.9,3.4498]
[1756814895298,0.8089,4327.0,4326.9,3.2078]
[1756814895500,0.8089,4327.0,4326.9,3.4498]
[1756814895694,0.5706,4326.4,4325.5,3.2078]
[1756814895894,0.5706,4326.4,4325.6,0.242]
[1756814896100,0.5706,4326.4,4326.0,3.2078]
[1756814896300,0.2383,4326.5,4326.1,0.242]
[1756814896894,0.5706,4326.4,4326.2,0.242]
[1756814897198,0.5706,4326.4,4326.3,0.242]
[1756814899298,0.2383,4326.0,4325.8,3.2078]
[1756814899492,0.8089,4326.0,4325.9,0.242]
[1756814900088,0.5706,4326.0,4325.9,0.242]
[1756814900292,0.8089,4326.5,4325.9,0.242]
[1756814901596,0.8089,4326.5,4325.8,3.2078]
[1756814901901,0.5706,4325.9,4325.8,3.2078]
[1756814902102,0.5706,4325.9,4325.8,3.4498]
[1756814902702,0.5706,4325.9,4325.3,44.0078]
[1756814903002,0.2383,4326.0,4325.4,0.242]
[1756814903202,0.5706,4325.4,4325.3,44.0078]
[1756814903503,0.2383,4326.0,4325.3,44.2498]
[1756814903504,0.5706,4325.9,4325.3,44.2498]
[1756814903800,0.5706,4325.9,4325.3,3.2078]
[1756814903994,0.5706,4325.9,4325.4,0.242]
[1756814904794,0.2383,4326.0,4325.3,3.2078]
[1756814904998,0.5706,4325.9,4325.3,3.2078]
[1756814905301,0.8089,4325.5,4325.4,0.242]
[1756814905503,0.5706,4325.5,4325.3,3.2078]
[1756814905700,0.5706,4325.5,4325.4,0.242]
[1756814905902,0.5706,4325.5,4325.3,3.2078]
[1756814906103,0.5706,4325.9,4325.4,0.242]
[1756814906297,0.2383,4326.0,4325.5,0.242]
[1756814906497,0.5706,4325.4,4325.3,3.2078]
[1756814906704,0.5706,4325.4,4325.3,3.4498]
[1756814907004,0.5706,4325.4,4325.3,3.2078]
[1756814907203,0.5706,4325.4,4324.3,3.2078]
[1756814907204,0.2383,4325.0,4324.3,3.2078]
[1756814907409,0.8089,4324.5,4324.4,0.242]
[1756814909108,0.8089,4324.5,4324.3,3.2078]
[1756814909109,0.5706,4324.4,4324.3,3.2078]
[1756814909307,0.5706,4324.4,4324.3,3.4498]
[1756814909599,0.5706,4324.4,4324.3,3.2078]
[1756814910102,0.5706,4324.4,4324.1,0.10637929]
[1756814910616,0.2383,4324.5,4324.0,1.15514596]
[1756814910802,0.5706,4324.1,4324.0,1.15514596]
[1756814911802,0.5706,4324.1,4324.0,1.39714596]
[1756814912707,0.5706,4324.6,4324.0,1.15514596]
[1756814913202,3.2078,4324.7,4324.0,1.15514596]
[1756814913508,0.5706,4324.4,4324.0,1.15514596]
[1756814913908,0.2383,4324.5,4324.0,1.15514596]
[1756814914106,0.5706,4324.4,4324.1,0.242]
[1756814914306,0.5706,4324.4,4324.0,1.15514596]
[1756814914603,0.2383,4324.5,4324.0,1.15514596]
[1756814914805,0.5706,4324.4,4324.0,1.15514596]
[1756814915506,0.2383,4324.5,4324.0,1.15514596]
[1756814915706,0.5706,4324.4,4324.0,1.15514596]
[1756814915909,0.2383,4324.5,4324.0,1.15514596]
[1756814916109,0.5706,4324.4,4324.0,1.15514596]
[1756814916701,0.2383,4324.5,4324.0,1.39814596]
[1756814917201,0.5706,4324.4,4324.0,1.15514596]
[1756814917402,0.2383,4324.5,4324.0,1.15514596]
[1756814917609,0.5706,4324.4,4324.0,1.15514596]
[1756814918119,0.2383,4324.5,4324.0,1.15514596]
[1756814919204,0.5531,4324.4,4324.0,1.15514596]
[1756814919504,0.2383,4324.5,4324.0,1.15514596]
[1756814920908,0.5531,4324.4,4324.0,1.15514596]
[1756814921207,0.2383,4324.5,4324.0,1.15514596]
[1756814921398,0.2383,4324.5,4324.0,1.39714596]
[1756814921605,0.5531,4324.4,4324.0,1.38701586]
[1756814921800,0.5531,4324.4,4324.0,1.14501586]
[1756814922002,3.7609,4324.1,4324.0,1.14501586]
[1756814922506,0.4803,4325.0,4324.0,1.14501586]
[1756814922507,3.2078,4324.3,4324.1,0.5842]
[1756814922709,3.2078,4324.3,4324.2,0.8262]
[1756814923103,0.5531,4325.4,4324.3,0.5842]
[1756814923405,0.5531,4325.4,4324.4,0.242]
[1756814923800,0.5531,4325.4,4324.5,0.5842]
[1756814924205,3.2078,4325.7,4324.6,0.23121999]
[1756814924411,3.2078,4325.7,4324.7,0.5842]
[1756814924610,3.2078,4325.7,4324.8,0.5842]
[1756814924806,3.2078,4325.7,4324.5,0.2301]
[1756814925012,3.2078,4325.7,4324.7,3.792]
[1756814925214,3.2078,4325.7,4324.8,0.5842]
[1756814926210,3.2078,4325.7,4324.9,0.5842]
[1756814926606,0.5531,4326.1,4325.0,0.2312]
[1756814926812,0.5531,4326.6,4325.5,0.41607]
[1756814927109,0.5531,4326.6,4325.2,3.2078]
[1756814927110,0.5531,4326.6,4325.9,0.5842]
[1756814927312,3.2078,4326.7,4325.9,0.5842]
[1756814927712,0.5531,4326.6,4325.9,0.5842]
[1756814927914,0.5531,4326.6,4326.0,0.242]
[1756814928311,0.5531,4326.6,4326.1,0.5842]
[1756814928512,3.7609,4326.7,4326.2,0.242]
[1756814928719,0.5531,4326.6,4326.2,0.242]
[1756814928914,3.2078,4326.7,4326.3,0.8262]
[1756814929213,0.5531,4326.6,4325.8,3.792]
[1756814929419,3.2078,4326.7,4326.4,0.242]
[1756814929721,0.5531,4326.6,4326.4,0.242]
[1756814929908,3.2078,4326.7,4325.8,3.792]
[1756814930106,0.5531,4326.6,4325.9,0.242]
[1756814930311,0.5531,4327.2,4326.4,0.5842]
[1756814930513,0.5531,4327.2,4326.6,0.5842]
[1756814931621,0.54295389,4327.2,4326.6,0.5842]
[1756814931920,0.54295389,4327.2,4326.5,0.242]
[1756814931921,3.2078,4327.8,4326.9,0.5842]
[1756814932213,3.2078,4327.8,4327.1,0.5842]
[1756814932416,3.2078,4328.3,4327.1,0.5842]
[1756814932714,0.18854455,4328.2,4327.1,0.5842]
[1756814932920,3.2078,4328.3,4327.1,0.5842]
[1756814933222,3.2078,4328.3,4327.4,0.5842]
[1756814933615,3.2078,4328.3,4327.5,0.242]
[1756814933921,3.2078,4328.3,4327.6,0.5842]
[1756814934520,3.2078,4328.3,4327.7,0.242]
[1756814935018,3.2078,4328.3,4327.3,3.4498]
[1756814935210,3.2078,4328.3,4327.3,0.8262]
[1756814935411,0.5531,4328.2,4327.3,0.8262]
[1756814936417,0.5531,4328.2,4327.4,0.5842]
[1756814936816,0.2223,4328.5,4326.9,40.8]
[1756814936817,3.2078,4327.8,4326.9,40.8]
[1756814937015,3.2078,4327.8,4327.0,0.243]
[1756814937016,0.5531,4327.7,4327.0,0.243]
[1756814937722,3.2078,4327.8,4327.1,0.243]
[1756814937924,3.2078,4327.8,4326.8,3.2078]
[1756814938122,0.5531,4327.7,4327.2,0.243]
[1756814938617,0.5531,4327.7,4327.0,0.243]
[1756814939218,0.5531,4327.7,4327.1,0.243]
[1756814939418,0.5531,4327.7,4327.1,0.8272]
[1756814939925,0.5531,4328.2,4327.3,3.2078]
[1756814940218,0.5531,4328.2,4327.4,0.5842]
[1756814940418,0.40435874,4330.0,4328.0,0.5842]
[1756814940419,0.5531,4328.7,4328.0,0.5842]
[1756814940614,0.5531,4328.7,4328.1,0.243]
[1756814940820,3.7609,4329.3,4328.2,1.00001]
[1756814941122,3.7609,4329.3,4328.5,0.5842]
[1756814941326,0.5531,4329.6,4328.5,0.5842]
[1756814941914,3.2078,4329.1,4328.6,0.243]
[1756814942121,0.2223,4329.5,4328.5,0.5842]
[1756814942320,0.5531,4328.7,4328.4,0.243]
[1756814942521,0.5531,4328.7,4328.0,0.5842]
[1756814942826,0.5531,4328.7,4328.1,41.043]
[1756814943027,0.5531,4328.9,4328.1,40.8]
[1756814943221,0.2223,4329.0,4328.0,0.5842]
[1756814943421,0.5531,4328.9,4328.0,0.5842]
[1756814943626,0.5531,4328.9,4328.1,0.243]
[1756814943822,3.7609,4329.4,4328.8,0.5842]
[1756814944025,3.7609,4329.4,4328.9,0.243]
[1756814944226,3.2078,4329.4,4329.0,0.243]
[1756814944419,0.5531,4329.3,4329.1,0.243]
[1756814944722,3.2078,4329.4,4329.1,0.243]
[1756814945029,0.5531,4329.3,4329.2,0.5842]
[1756814945225,0.6531,4330.2,4329.2,3.792]
[1756814945427,0.6531,4330.2,4329.3,0.5842]
[1756814946018,0.6531,4330.2,4329.1,33.94472]
[1756814946019,0.1,4330.2,4329.7,3.2078]
[1756814946223,0.1,4330.2,4329.9,0.5842]
[1756814946633,0.5531,4331.4,4330.3,0.4156]
[1756814946927,0.5531,4331.4,4330.8,0.5842]
[1756814947124,0.5531,4331.4,4330.7,3.2078]
[1756814947125,0.5531,4331.4,4330.9,0.243]
[1756814947425,3.2078,4331.7,4331.1,0.5842]
[1756814947629,0.5531,4331.6,4331.0,40.8]
[1756814947830,0.5531,4331.4,4331.2,0.243]
[1756814948025,0.5531,4331.4,4329.7,0.41567]
[1756814948026,0.5531,4331.4,4329.6,0.5842]
[1756814948329,3.2078,4330.8,4329.7,41.043]
[1756814948520,0.5531,4330.6,4330.0,3.2078]
[1756814948931,0.5531,4330.6,4330.1,0.243]
[1756814949227,0.5947,4330.7,4330.1,0.243]
[1756814949529,0.5947,4330.4,4330.2,0.243]
[1756814950027,3.2078,4330.8,4330.2,0.243]
[1756814950228,3.2078,4330.8,4330.3,0.5613]
[1756814950631,0.5947,4331.1,4330.8,0.5613]
[1756814950823,3.2078,4331.6,4330.7,3.2078]
[1756814950824,0.5947,4331.5,4330.7,3.2078]
[1756814951025,0.5947,4331.4,4330.7,3.2078]
[1756814951221,3.2078,4331.1,4330.3,0.243]
[1756814951427,0.5947,4330.4,4330.0,0.128]
[1756814951730,0.2198,4330.5,4330.0,0.128]
[1756814952035,0.2198,4330.5,4329.7,3.2078]
[1756814952331,0.5947,4330.4,4329.5,40.8]
[1756814952527,0.5947,4330.4,4329.6,0.243]
[1756814952727,0.5947,4330.4,4329.5,40.8]
[1756814952929,0.5947,4330.4,4329.6,0.243]
[1756814952930,3.4276,4330.0,4329.6,0.243]
[1756814953233,0.5947,4329.9,4329.2,3.2078]
[1756814953430,3.4276,4330.0,4329.2,3.4508]
[1756814953628,0.5947,4329.9,4329.2,3.4508]
[1756814953830,0.5947,4329.9,4328.7,33.28]
[1756814953831,3.4276,4330.0,4329.1,0.243]
[1756814954021,3.4276,4330.0,4328.7,74.08]
[1756814954022,0.5947,4329.9,4328.7,74.08]
[1756814954226,3.4276,4330.0,4328.7,74.08]
[1756814954429,0.5947,4329.9,4328.8,0.243]
[1756814954624,0.5947,4329.9,4328.7,33.28]
[1756814954625,0.5947,4329.9,4329.1,3.2078]
[1756814954825,0.5947,4329.9,4329.2,0.244]
[1756814955031,0.5947,4329.9,4329.1,3.2078]
[1756814955235,0.5947,4329.9,4329.2,0.65971]
[1756814955431,0.5947,4329.9,4329.2,0.244]
[1756814955650,3.2078,4330.6,4329.6,3.2078]
[1756814955939,0.5947,4329.8,4329.6,0.244]
[1756814956236,0.5947,4329.8,4328.9,3.7691]
[1756814956237,0.5947,4329.8,4329.2,0.244]
[1756814957628,3.2078,4329.9,4329.3,0.5613]
[1756814958131,0.5947,4329.8,4329.4,0.244]
[1756814958331,0.5947,4329.8,4328.9,3.7691]
[1756814958637,0.5947,4329.8,4329.0,0.244]
[1756814959028,0.5947,4329.8,4328.9,3.2078]
[1756814959224,0.5947,4329.8,4329.0,0.244]
[1756814960030,3.2078,4329.9,4328.9,3.2078]
[1756814960226,0.5947,4329.8,4329.0,0.244]
[1756814960634,3.2078,4329.9,4328.9,3.2078]
[1756814960824,3.2078,4329.9,4329.0,0.244]
[1756814961025,0.5947,4329.8,4329.1,0.244]
[1756814961633,0.5947,4329.8,4328.9,3.2078]
[1756814962236,0.5947,4329.8,4329.0,0.244]
[1756814963229,0.5947,4329.8,4328.9,3.2078]
[1756814963431,3.2078,4329.9,4328.9,3.2078]
[1756814963432,0.18992431,4329.7,4329.0,0.244]
[1756814963740,0.5947,4329.8,4329.0,0.8053]
[1756814964338,0.5947,4329.6,4329.0,0.8053]
[1756814965230,0.5947,4329.6,4329.1,0.244]
[1756814965433,0.5947,4329.8,4329.1,0.244]
[1756814965636,0.19001523,4329.7,4329.1,0.244]
[1756814965831,0.5947,4329.8,4329.1,0.244]
[1756814966036,0.18999302,4329.7,4329.1,0.244]
[1756814966337,0.5947,4329.8,4329.2,0.5613]
[1756814966536,0.19003715,4329.7,4329.1,0.244]
[1756814966737,0.5947,4329.8,4329.2,0.5613]
[1756814967038,0.5947,4329.7,4329.5,0.5613]
[1756814967241,0.5947,4329.7,4329.6,0.8043]
[1756814968037,3.2078,4330.4,4329.4,3.2078]
[1756814968236,0.5947,4330.2,4329.5,0.8043]
[1756814968436,0.76961698,4330.1,4329.5,0.8043]
[1756814968638,0.5947,4329.9,4329.5,0.8043]
[1756814968837,0.5947,4330.3,4329.5,0.8043]
[1756814969032,0.5947,4330.1,4329.5,0.8043]
[1756814969232,0.19062069,4330.0,4329.5,0.243]
[1756814969437,0.19062069,4329.9,4329.5,0.243]
[1756814969637,0.19062069,4329.8,4329.5,0.243]
[1756814969833,0.19062069,4329.7,4329.6,0.5613]
[1756814970240,0.5947,4330.8,4329.6,4.0]
[1756814970547,0.77167652,4330.7,4330.5,0.5613]
[1756814970848,0.2198,4330.5,4329.9,40.8]
[1756814971040,0.77172239,4330.4,4329.9,40.8]
[1756814971246,0.78559987,4330.3,4330.0,0.243]
[1756814971446,0.5947,4330.1,4330.0,0.243]
[1756814971741,0.19089987,4330.1,4330.0,0.243]
[1756814971946,0.5947,4330.6,4330.0,0.243]
[1756814972134,0.5947,4330.4,4330.0,0.243]
[1756814972445,0.19090658,4330.3,4330.0,0.243]
[1756814972747,0.78560658,4330.2,4330.1,0.243]
[1756814973046,0.5947,4330.7,4330.1,1.21994]
[1756814973242,0.19094648,4330.6,4330.3,3.2078]
[1756814973445,0.5947,4331.3,4330.4,0.5613]
[1756814973647,0.2198,4331.0,4330.5,0.243]
[1756814973844,0.5947,4330.7,4330.3,3.2078]
[1756814974149,0.5947,4330.5,4330.4,0.243]
[1756814974741,0.5947,4330.5,4330.4,0.5613]
[1756814975045,0.41075348,4330.5,4330.3,3.2078]
[1756814975245,1.36657399,4330.4,4330.0,0.243]
[1756814975442,3.8025,4330.1,4329.3,0.5613]
[1756814975647,0.5947,4329.9,4329.4,0.243]
[1756814975849,0.5947,4329.7,4329.4,0.243]
[1756814976143,0.5947,4329.5,4329.4,0.243]
[1756814976348,0.5947,4329.4,4329.0,3.2078]
[1756814976646,0.5947,4329.2,4329.1,0.243]
[1756814976850,0.19095348,4329.2,4329.0,3.2078]
[1756814977144,0.5947,4329.1,4329.0,3.2078]
[1756814977645,0.5947,4329.1,4327.1,2.05546645]
[1756814977646,0.2198,4329.0,4328.7,0.243]
[1756814977945,0.77191783,4328.9,4327.9,44.0078]
[1756814978153,0.5947,4328.7,4328.0,0.243]
[1756814978448,0.19100576,4328.6,4328.1,0.243]
[1756814978643,0.5947,4328.5,4328.2,0.243]
[1756814978845,0.19091545,4328.4,4328.3,0.243]
[1756814979443,3.2078,4329.1,4328.3,0.7817]
[1756814979743,0.73195914,4329.0,4328.3,0.7817]
[1756814979944,0.19085914,4328.9,4328.3,0.7817]
[1756814980144,0.19085914,4328.8,4328.4,0.5387]
[1756814980347,0.5411,4329.5,4328.8,0.5387]
[1756814980551,0.19089436,4329.4,4328.9,0.243]
[1756814980853,0.5411,4329.5,4328.9,0.7817]
[1756814981053,0.5411,4329.5,4328.9,0.5387]
[1756814981354,0.5411,4329.5,4328.6,0.243]
[1756814981355,0.5411,4329.1,4328.6,0.243]
[1756814981555,0.5411,4328.9,4328.7,0.243]
[1756814981758,0.5411,4329.2,4328.7,0.243]
[1756814981945,0.5411,4329.2,4328.8,0.5387]
[1756814982148,0.5411,4329.2,4328.7,0.243]
[1756814982652,0.5411,4329.0,4328.3,0.5387]
[1756814982852,0.5411,4329.0,4328.4,0.243]
[1756814983254,0.5411,4329.0,4328.3,0.5387]
[1756814983451,0.5411,4329.0,4328.4,0.243]
[1756814983653,1.21254467,4330.8,4328.7,4.24723]
[1756814983955,9.181,4335.6,4328.6,0.5387]
[1756814983956,3.2078,4331.6,4330.4,3.2078]
[1756814984156,0.19093196,4331.5,4330.5,0.5387]
[1756814984457,0.19093196,4331.4,4330.5,0.5387]
[1756814984657,0.19093196,4331.3,4330.5,0.5387]
[1756814984857,0.19093196,4331.2,4330.5,0.5387]
[1756814985059,3.2078,4330.8,4330.5,0.5387]
[1756814985358,0.19084092,4330.7,4329.8,3.2078]
[1756814985556,0.19084092,4330.6,4329.8,3.2078]
[1756814985765,0.19084092,4330.5,4329.8,3.2078]
[1756814986268,0.245,4330.4,4329.8,3.2078]
[1756814986472,0.5411,4330.3,4329.8,3.2078]
[1756814986665,3.2078,4330.8,4329.8,3.2078]
[1756814986968,0.5411,4330.6,4329.8,3.2078]
[1756814987663,0.5411,4330.7,4329.8,3.2078]
[1756814987873,0.7861,4330.6,4329.8,3.2078]
[1756814988062,0.245,4330.5,4329.8,3.2078]
[1756814988258,0.5411,4330.6,4329.8,3.2078]
[1756814988470,0.5411,4331.8,4330.3,3.2078]
[1756814988661,0.5411,4331.8,4330.9,0.5387]
[1756814989071,0.245,4331.8,4331.1,0.5387]
[1756814989271,3.2078,4331.9,4331.1,0.5387]
[1756814989470,0.245,4331.8,4331.1,0.5387]
[1756814990164,0.5411,4332.2,4331.3,3.2078]
[1756814990165,0.245,4332.0,4331.3,3.2078]
[1756814990369,3.2078,4333.0,4331.9,0.5387]
[1756814990567,3.2078,4333.0,4332.4,0.5387]
[1756814992767,3.7489,4333.0,4332.4,0.5387]
[1756814992964,3.7489,4333.0,4332.3,3.2078]
[1756814994266,3.9939,4333.0,4332.3,3.7465]
[1756814994468,3.9939,4333.0,4332.3,3.2078]
[1756814994469,3.4528,4333.0,4332.3,3.2078]
[1756814994670,0.5411,4332.4,4331.5,3.2078]
[1756814994973,3.2078,4331.9,4331.1,0.5387]
[1756814995168,0.245,4332.5,4331.1,0.95424]
[1756814995375,0.5411,4332.7,4331.6,0.5387]
[1756814995670,0.5411,4332.7,4331.7,0.245]
[1756814996173,0.5411,4332.5,4331.7,0.245]
[1756814996371,0.245,4332.6,4331.6,0.5387]
[1756814996372,3.2078,4332.2,4331.6,0.5387]
[1756814996566,0.7861,4332.1,4331.1,0.5387]
[1756814998268,0.5411,4332.1,4331.1,0.5387]
[1756814998571,0.7861,4332.1,4331.1,0.5387]
[1756814999772,0.7861,4332.1,4331.1,0.7837]
[1756814999969,0.245,4332.1,4331.1,0.7837]
[1756815000363,0.5411,4332.0,4331.1,0.5387]
[1756815000566,0.5411,4331.2,4330.6,0.5387]
[1756815001075,0.245,4331.2,4330.5,3.2078]
[1756815001377,0.5411,4331.1,4330.5,3.2078]
[1756815001872,0.5411,4331.1,4330.5,3.7465]
[1756815002074,0.245,4331.3,4330.6,0.5387]
[1756815002869,0.5411,4331.5,4330.6,0.5387]
[1756815003076,0.7861,4331.5,4330.6,0.5387]
[1756815003474,0.5411,4331.5,4330.6,0.5387]
[1756815003972,3.2078,4331.8,4330.6,0.5387]
[1756815004372,0.245,4331.9,4330.0,0.5387]
[1756815004373,3.2078,4331.2,4330.0,0.5387]
[1756815004673,3.2078,4331.2,4330.0,0.7837]
[1756815004674,0.5411,4331.1,4330.0,0.7837]
[1756815004876,3.2078,4330.6,4330.0,0.5387]
[1756815005279,3.2078,4330.6,4329.9,0.245]
[1756815005480,3.2078,4330.5,4329.9,0.5387]
[1756815005675,3.2078,4330.5,4329.8,3.2078]
[1756815005875,3.2078,4330.5,4329.3,0.5387]
[1756815005876,0.5411,4330.2,4329.3,0.5387]
[1756815006082,3.7489,4329.9,4329.3,0.5387]
[1756815006678,3.7489,4329.9,4328.0,33.4745]
[1756815006679,0.5411,4329.3,4328.1,0.5387]
[1756815006887,0.5411,4329.0,4328.2,0.245]
[1756815007281,0.5411,4329.0,4328.1,41.3387]
[1756815007478,0.5411,4329.0,4328.2,0.245]
[1756815008584,0.5411,4329.0,4328.3,0.5387]
[1756815009883,3.2078,4329.1,4328.0,3.4528]
[1756815010389,3.2078,4329.1,4328.0,3.2078]
[1756815010583,0.5485,4329.0,4328.0,3.2078]
[1756815010983,3.2078,4329.1,4328.0,3.2078]
[1756815011587,0.5485,4329.0,4328.0,3.2078]
[1756815011786,0.244,4328.9,4328.1,0.6002]
[1756815013385,0.5485,4329.0,4328.1,0.6002]
[1756815013778,0.5485,4329.0,4328.2,0.244]
[1756815013984,0.5485,4329.0,4328.1,0.6002]
[1756815014183,0.5485,4329.0,4328.2,0.244]
[1756815014380,0.5485,4329.0,4328.1,0.8442]
[1756815015284,0.5485,4329.0,4328.2,0.6002]
[1756815015488,0.5485,4329.0,4328.2,0.244]
[1756815015685,0.5485,4329.0,4328.3,0.6002]
[1756815019094,0.5485,4328.5,4327.8,0.6002]
[1756815019896,5.8925,4328.5,4327.8,0.6002]
[1756815020290,5.8925,4328.5,4327.1,0.6002]
[1756815020291,0.5485,4327.9,4327.1,0.6002]
[1756815022590,0.5485,4327.9,4327.1,0.8442]
[1756815023387,0.5485,4327.9,4327.1,0.6002]
[1756815025182,0.5485,4327.4,4326.7,3.2078]